Cogmind - Beta 11 X2 @@@ ROGUE MODE // 2021.02.13 @ 19:36:39 Player: PhenomPhear Result: Self-destructed Performance ------------- Evolutions (4) 2000 Regions Visited (9) 1800 Robots Destroyed (79) 395 Value Destroyed (2656) 2656 Prototype IDs (0) 0 Alien Tech Used (0) 0 Bonus (141) 141 TOTAL SCORE: 6992 Bonus ------- High Alert Combat Kills 203 Follower Combat Kills 95 Friendly Fire -157 Cogmind --------- Core Integrity 14/850 Matter 290/300 Energy 30/100 System Corruption 38% Temperature Cool (0) Movement Core (50) Location -6/Factory Parts ------- > --- POWER (1) -------- (None) > --- PROPULSION (6) --- (None) > --- UTILITY (6) ------ Core Analyzer Phase Shifter Improved Utility Shielding > --- WEAPON (2) ------- (None) > --- INVENTORY (5) ---- Light Fission Core High-capacity Storage Unit Humpback Peak State ------------ > --- POWER ------------ Improved Deuterium Engine > --- PROPULSION ------- Improved Carbon-fiber Leg Improved Carbon-fiber Leg Improved Carbon-fiber Leg Improved Carbon-fiber Leg Improved Carbon-fiber Leg Improved Carbon-fiber Leg > --- UTILITY ---------- Coolant Injector Large Storage Unit Advanced Terrain Scanner Advanced Terrain Scan Processor Improved Maneuvering Thrusters Improved Medium Armor Plating > --- WEAPON ----------- Advanced Assault Cannon Advanced Assault Cannon > --- INVENTORY -------- Nuclear Core Improved Deuterium Engine Micro Nuclear Core Micro Nuclear Core Fission Core Fission Core Improved Carbon-fiber Leg Humpback High-capacity Matter Pod Improved Medium Armor Plating Advanced Assault Cannon Advanced Assault Cannon Shock Bomb Launcher Missile Launcher [Rating: 64] Favorites ----------- Power Ion Engine Engine Ion Engine Power Core Micro Nuclear Core Propulsion Light Treads Treads Light Treads Leg Improved Carbon-fiber Leg Hover Unit Airjet Flight Unit VTOL Module Utility Large Storage Unit Device Coolant Injector Storage Large Storage Unit Processor Advanced Terrain Scan Processor Protection Hardened Light Armor Plating Weapon Advanced Assault Cannon Energy Cannon Plasma Cannon Ballistic Gun Light Assault Rifle Ballistic Cannon Advanced Assault Cannon Launcher Shock Bomb Launcher Build | -11 -10 -10 -10 -9 -8 -7 -6 -6 -6 ------- Run | Scr Mat Min Exi Min Mat Fac Fac Was Fac Slots Evolved 8 | . . . . . 4 2 2 . . Power . | . . . . . . . . . . Propulsion 4 | . . . . . 2 1 1 . . Utility 4 | . . . . . 2 1 1 . . Weapon . | . . . . . . . . . . Parts Attached 85 | 6 3 . . . 19 3 35 10 9 Power 7 | 1 . . . . 1 . 3 1 1 Engine 5 | 1 . . . . . . 3 1 . Core 2 | . . . . . 1 . . . 1 Reactor . | . . . . . . . . . . Propulsion 21 | 2 . . . . 6 . 9 1 3 Treads 10 | 2 . . . . 6 . 2 . . Leg 8 | . . . . . . . 7 1 . Wheel . | . . . . . . . . . . Hover 1 | . . . . . . . . . 1 Flight 2 | . . . . . . . . . 2 Utility 27 | 1 3 . . . 6 2 11 2 2 Device 10 | . . . . . 2 1 5 1 1 Storage 5 | 1 2 . . . 1 . . 1 . Processor 2 | . . . . . . . 1 . 1 Hackware . | . . . . . . . . . . Protection 10 | . 1 . . . 3 1 5 . . Artifact . | . . . . . . . . . . Weapon 30 | 2 . . . . 6 1 12 6 3 Energy Gun . | . . . . . . . . . . Energy Cannon 7 | . . . . . 2 . 2 2 1 Ballistic Gun 2 | 2 . . . . . . . . . Ballistic Cannon 13 | . . . . . 3 1 6 3 . Launcher 8 | . . . . . 1 . 4 1 2 Special Weapon . | . . . . . . . . . . Impact Weapon . | . . . . . . . . . . Slashing Weapon . | . . . . . . . . . . Piercing Weapon . | . . . . . . . . . . Special Melee Weapon . | . . . . . . . . . . Unidentified Prototypes . | . . . . . . . . . . Parts Lost 26 | . . . . . . . 10 9 7 Power 3 | . . . . . . . 1 1 1 Propulsion 11 | . . . . . . . 5 3 3 Utility 4 | . . . . . . . 4 . . Weapon 8 | . . . . . . . . 5 3 Highest Loss Streak 8 | . . . . . . . 3 8 5 Average Slot Usage (%) 89 | . 97 100 100 100 98 91 94 55 20 Engine 6 | . 14 14 14 14 1 . 5 4 . Core 2 | . . . . . 7 7 . . 3 Treads 19 | . 28 28 28 28 34 30 4 4 . Leg 9 | . . . . . . . 31 9 . Device 7 | . . . . . 8 13 14 6 . Storage 9 | . 20 14 14 14 9 7 6 10 . Processor 1 | . . . . . . . 5 4 2 Protection 12 | . 4 14 14 14 18 16 11 6 6 Ballistic Gun 9 | . 28 28 28 28 1 . . . . Ballistic Cannon 7 | . . . . . 13 15 10 3 . Naked Turns . | . . . . . . . . . . Heaviest Build 61 | 13 33 33 33 33 52 50 61 51 8 Greatest Support 108 | 40 40 40 40 40 83 83 108 36 8 Greatest Overweight (x) 2 | . . . . . . . 1 1 2 Average Overweight (x) . | . . . . . . . . . . Largest Inventory Capacity 15 | 8 15 15 15 15 15 15 15 15 5 Average Capacity 13 | 6 13 15 15 15 15 15 15 13 5 Most Carried 15 | 2 7 8 14 14 15 15 15 11 5 Average Carried 11 | . 4 7 11 13 14 14 13 8 4 Final Capacity 15 | 8 15 15 15 15 15 15 15 5 5 Final Carried 15 | 2 7 8 13 14 15 15 12 5 4 Class Distribution -------------------- 97% | Mutant Dominant Class ---------------- Mutant | -10/Materials Mutant | -10/Mines Mutant | -10/Exiles Mutant | -9/Mines Mutant | -8/Materials Mutant | -7/Factory Mutant | -6/Factory Mutant | -6/Waste Mutant | -6/Factory Resources | -11 -10 -10 -10 -9 -8 -7 -6 -6 -6 ----------- Run | Scr Mat Min Exi Min Mat Fac Fac Was Fac Matter Collected 3120 | 149 239 90 . . 395 368 1315 450 114 Remotely . | . . . . . . . . . . Salvage Created 3335 | . 282 . . . 500 185 1512 772 84 Parts 128 | . 14 . . . 30 6 66 5 7 Haulers Intercepted 3 | . 1 . . . . 1 1 . . Recyclers Shooed 4 | . 1 . . . . . 3 . . Parts Field Recycled . | . . . . . . . . . . Retrieved Matter . | . . . . . . . . . . Parts Self-Destructed . | . . . . . . . . . . Prevented . | . . . . . . . . . . Kills | -11 -10 -10 -10 -9 -8 -7 -6 -6 -6 ------- Run | Scr Mat Min Exi Min Mat Fac Fac Was Fac Combat Hostiles Destroyed 48 | . 5 . . . 11 3 24 3 2 Melee 3 | . 1 . . . 1 . . . 1 Guns 4 | . 4 . . . . . . . . Cannons 26 | . . . . . 8 3 14 1 . AOE 14 | . . . . . 2 . 9 2 1 Classes Destroyed 14 | . 3 . . . 4 1 5 1 . Worker 9 | . . . . . . . 7 . 2 Builder 4 | . . . . . 2 . 2 . . Tunneler 1 | . . . . . . . 1 . . Hauler 3 | . 1 . . . . 1 1 . . Recycler 8 | . . . . . 1 1 6 . . Operator 1 | . . . . . . . 1 . . Watcher 4 | . 1 . . . 1 1 1 . . Swarmer 9 | . . . . . . . 7 . 2 Grunt 17 | . 5 . . . 6 1 5 . . Duelist 1 | . . . . . . . 1 . . Sentry 10 | . . . . . 4 1 5 . . Hunter 4 | . . . . . 2 . 2 . . Programmer 5 | . . . . . . 1 4 . . Compactor 3 | . . . . . . . . 3 . Best Kill Streak 5 | . 4 . . . 5 2 5 2 2 Combat Bots Only 4 | . 4 . . . 4 1 4 2 2 Max Kills in Single Turn 4 | . 1 . . . 2 1 4 1 2 Gunslinging . | . . . . . . . . . . Exploded 2 | . . . . . 1 . 2 1 1 Melee 1 | . 1 . . . 1 . . . 1 Uniques/NPCs Destroyed . | . . . . . . . . . . Combat | -11 -10 -10 -10 -9 -8 -7 -6 -6 -6 -------- Run | Scr Mat Min Exi Min Mat Fac Fac Was Fac Damage Taken 4833 | . 165 . . . 625 239 2664 452 688 Core 971 | . 28 . . . 81 26 206 247 383 Absorbed by Shields . | . . . . . . . . . . Core Remaining (%) 92 | 100 . . . 88 85 96 . . . Volleys Fired 214 | . 23 . . . 35 20 107 20 9 Largest 2 | . 2 . . . 2 2 2 2 1 Hottest 160 | . 40 . . . 96 96 160 96 80 Shots Fired 378 | . 46 . . . 65 40 190 29 8 Gun 46 | . 46 . . . . . . . . Cannon 293 | . . . . . 60 40 171 19 3 Launcher 39 | . . . . . 5 . 19 10 5 Special . | . . . . . . . . . . Kinetic 300 | . 46 . . . 60 40 135 19 . Thermal 39 | . . . . . . . 36 . 3 Explosive 22 | . . . . . 5 . 4 10 3 Electromagnetic 17 | . . . . . . . 15 . 2 Robot Hit Streak 15 | . 13 . . . 14 4 15 8 2 Robot Miss Streak 8 | . 2 . . . 2 2 8 2 2 Penetration Max . | . . . . . . . . . . Secondary Targets . | . . . . . . . . . . Shots Hit Robots 226 | . 32 . . . 42 23 108 18 3 Core Hits 137 | . 13 . . . 22 8 70 10 14 Critical Hits 6 | . . . . . 3 . 3 . . Critical Kills 1 | . . . . . . . 1 . . Critical Parts Destroyed 4 | . . . . . 2 . 2 . . Melee Attacks . | . . . . . . . . . . Impact . | . . . . . . . . . . Slashing . | . . . . . . . . . . Piercing . | . . . . . . . . . . Sneak Attacks . | . . . . . . . . . . Combat Hostiles . | . . . . . . . . . . Follow-up Attacks . | . . . . . . . . . . Damage Inflicted 9341 | . 319 . . . 1635 628 4557 1510 692 Guns 314 | . 314 . . . . . . . . Cannons 4936 | . . . . . 1055 628 2839 390 24 Explosions 3994 | . . . . . 562 . 1674 1120 638 Melee . | . . . . . . . . . . Ramming 97 | . 5 . . . 18 . 44 . 30 Kinetic 4840 | . 314 . . . 1055 628 2453 390 . Thermal 1059 | . . . . . . . 1035 . 24 Explosive 2859 | . . . . . 562 . 601 1120 576 Electromagnetic 486 | . . . . . . . 424 . 62 Impact . | . . . . . . . . . . Slashing . | . . . . . . . . . . Piercing . | . . . . . . . . . . Highest Corruption 38 | . . . . . . . 5 28 38 Average Corruption 13 | . . . . . . . 1 17 29 Corruption Purged . | . . . . . . . . . . Effects 51 | . . . . . . . 6 11 34 Message Errors 8 | . . . . . . . 3 . 5 Matter Fused 8 | . . . . . . . 2 2 4 Heat Flow Errors 11 | . . . . . . . . 7 4 Energy Discharges 3 | . . . . . . . . . 3 Parts Rejected 1 | . . . . . . . 1 . . Data Loss (minor) 3 | . . . . . . . . 1 2 Data Loss (major) 1 | . . . . . . . . . 1 Misdirections 15 | . . . . . . . . 1 14 Weapon Failures 1 | . . . . . . . . . 1 Overload Shots . | . . . . . . . . . . Overflow Damage 394 | . . . . . 46 13 280 55 . Projectiles 152 | . . . . . 11 13 128 . . Explosions 242 | . . . . . 35 . 152 55 . Melee . | . . . . . . . . . . Knockbacks 26 | . . . . . 5 4 17 . . Impact . | . . . . . . . . . . Kinetic 26 | . . . . . 5 4 17 . . Secondary . | . . . . . . . . . . Self-Inflicted Damage 628 | . . . . . 36 . 330 231 31 Shots 16 | . . . . . 1 . 5 8 2 Rammed 6 | . 1 . . . 1 . . . 4 Targets Rammed 11 | . 2 . . . 2 . 3 . 4 Kicked 3 | . . . . . . . 3 . . Crushed 2 | . 1 . . . 1 . . . . Highest Temperature 289 | . 15 . . . 198 160 287 289 229 Average Temperature 86 | . 8 . . . 79 63 98 97 80 Received Heat Transfer 930 | . 90 . . . 126 36 564 . 114 Effects 1 | . . . . . . . 1 . . Interference 1 | . . . . . . . 1 . . Siege Activations . | . . . . . . . . . . Robots Corrupted 1 | . . . . . . . 1 . . Combat Hostiles 1 | . . . . . . . 1 . . Parts Fried 4 | . . . . . . . 4 . . Impact Corruptions . | . . . . . . . . . . Robots Melted . | . . . . . . . . . . Combat Hostiles . | . . . . . . . . . . Parts Melted 4 | . . . . . . . 3 . 1 Heat Transferred 1300 | . . . . . . . 1250 . 50 Parts Sabotaged . | . . . . . . . . . . Parts Stolen . | . . . . . . . . . . Parts Stripped . | . . . . . . . . . . Power Chain Reactions 1 | . . . . . . . 1 . . Missiles Intercepted . | . . . . . . . . . . Alert | -11 -10 -10 -10 -9 -8 -7 -6 -6 -6 ------- Run | Scr Mat Min Exi Min Mat Fac Fac Was Fac Peak Influence 781 | . 245 75 . . 265 173 781 280 284 Initial 273 | . . 17 . . . 120 . 273 151 Average 158 | . 121 17 . . 77 91 314 257 202 Maximum Alert Level 3 | . 1 . . . 1 . 3 1 1 Low Security (%) 70 | 100 59 100 . 100 90 100 45 . 39 Level 1 18 | . 40 . . . 9 . 17 100 60 Level 2 6 | . . . . . . . 22 . . Level 3 4 | . . . . . . . 14 . . Level 4 . | . . . . . . . . . . Level 5 . | . . . . . . . . . . High Security . | . . . . . . . . . . Max Security . | . . . . . . . . . . Squads Dispatched 14 | . 2 . . . 2 1 7 . 2 Investigation 2 | . . . . . 1 . . . 1 Extermination 2 | . . . . . . 1 1 . . Reinforcement 8 | . 2 . . . 1 . 4 . 1 Assault 2 | . . . . . . . 2 . . Garrison . | . . . . . . . . . . Intercept . | . . . . . . . . . . Construction Impeded 3 | . . . . . . . 2 . 1 Haulers Reinforced 1 | . . . . . . . 1 . . Stealth | -11 -10 -10 -10 -9 -8 -7 -6 -6 -6 --------- Run | Scr Mat Min Exi Min Mat Fac Fac Was Fac Distress Signals 4 | . 1 . . . 1 . 2 . . Communications Jammed . | . . . . . . . . . . Distress Signals . | . . . . . . . . . . Times Spotted 100 | . 13 5 . . 15 4 46 5 12 Peak Tracking Total 6 | . 4 2 . . 4 1 6 3 5 Tactical Retreats 4 | . . . . . . . 2 . 2 Traps | -11 -10 -10 -10 -9 -8 -7 -6 -6 -6 ------- Run | Scr Mat Min Exi Min Mat Fac Fac Was Fac Traps Triggered 5 | . . . . . . . 3 . 2 Indirectly . | . . . . . . . . . . Trap Hack Attempts . | . . . . . . . . . . Triggered . | . . . . . . . . . . Disarmed . | . . . . . . . . . . Reprogrammed . | . . . . . . . . . . Reused . | . . . . . . . . . . Traps Extracted . | . . . . . . . . . . Installed . | . . . . . . . . . . Triggered . | . . . . . . . . . . Machines | -11 -10 -10 -10 -9 -8 -7 -6 -6 -6 ---------- Run | Scr Mat Min Exi Min Mat Fac Fac Was Fac Machines Disabled 22 | . . . . . 1 1 20 . . Max in Single Turn 7 | . . . . . 1 1 7 . . Machines Sabotaged . | . . . . . . . . . . Garrisons Compromised . | . . . . . . . . . . Overloaded Fab Kills . | . . . . . . . . . . Fab Network Shutdowns . | . . . . . . . . . . Hacking | -11 -10 -10 -10 -9 -8 -7 -6 -6 -6 --------- Run | Scr Mat Min Exi Min Mat Fac Fac Was Fac Machines Accessed 9 | . 3 . . . 1 1 2 . 2 Terminals 5 | . 2 . . . . . 1 . 2 Fabricators 2 | . . . . . . 1 1 . . Repair Stations 1 | . . . . . 1 . . . . Recycling Units 1 | . 1 . . . . . . . . Scanalyzers . | . . . . . . . . . . Garrison Access . | . . . . . . . . . . Total Hacks 23 | . 10 . . . 3 1 3 . 6 Successful 8 | . 4 . . . 2 1 1 . . Failed 15 | . 6 . . . 1 . 2 . 6 Catastrophic 2 | . . . . . . . 1 . 1 Database Lockouts . | . . . . . . . . . . Manual 5 | . 2 . . . . . . . 3 Terminals 14 | . 7 . . . . . 1 . 6 Fabricators 3 | . . . . . . 1 2 . . Repair Stations 3 | . . . . . 3 . . . . Recycling Units 3 | . 3 . . . . . . . . Scanalyzers . | . . . . . . . . . . Garrison Access . | . . . . . . . . . . Terminal Hacks 4 | . 3 . . . . . 1 . . Branch Access Points 1 | . 1 . . . . . . . . Emergency Access Points 2 | . 1 . . . . . 1 . . Zone Layout 1 | . 1 . . . . . . . . Fabricator Hacks 1 | . . . . . . 1 . . . Build 1 | . . . . . . 1 . . . Repair Station Hacks 2 | . . . . . 2 . . . . Scan Component 1 | . . . . . 1 . . . . Repair 1 | . . . . . 1 . . . . Recycling Unit Hacks 1 | . 1 . . . . . . . . Retrieve Components 1 | . 1 . . . . . . . . Scanalyzer . | . . . . . . . . . . Garrison Access Hacks . | . . . . . . . . . . Unauthorized Hacks . | . . . . . . . . . . Terminals . | . . . . . . . . . . Fabricators . | . . . . . . . . . . Repair Stations . | . . . . . . . . . . Recycling Units . | . . . . . . . . . . Scanalyzers . | . . . . . . . . . . Garrison Access . | . . . . . . . . . . Data Cores Recovered . | . . . . . . . . . . Used . | . . . . . . . . . . Hacking Detections 7 | . 1 . . . 1 1 2 . 2 Full Trace Events 1 | . . . . . 1 . . . . Feedback Events . | . . . . . . . . . . Feedback Blocked . | . . . . . . . . . . Robot Schematics Acquired . | . . . . . . . . . . Robots Built 1 | . . . . . . 1 . . . Matter 153 | . . . . . . 153 . . . Time 40 | . . . . . . 40 . . . Total Robot Build Rating 1 | . . . . . . 1 . . . Part Schematics Acquired . | . . . . . . . . . . Parts Built . | . . . . . . . . . . Matter . | . . . . . . . . . . Time . | . . . . . . . . . . Total Part Build Rating . | . . . . . . . . . . Parts Repaired 1 | . . . . . 1 . . . . Time 26 | . . . . . 26 . . . . Parts Recycled . | . . . . . . . . . . Recycled Matter . | . . . . . . . . . . Retrieved Matter . | . . . . . . . . . . Retrieved Components 3 | . 3 . . . . . . . . Parts Scanalyzed . | . . . . . . . . . . Part Schematics Acquired . | . . . . . . . . . . Parts Damaged . | . . . . . . . . . . Bothacking | -11 -10 -10 -10 -9 -8 -7 -6 -6 -6 ------------ Run | Scr Mat Min Exi Min Mat Fac Fac Was Fac Used RIF Installer . | . . . . . . . . . . Robots Hacked . | . . . . . . . . . . Non-combat . | . . . . . . . . . . Combat . | . . . . . . . . . . Robot Hacks Applied . | . . . . . . . . . . Relay Couplers Released . | . . . . . . . . . . Robots Rewired . | . . . . . . . . . . Allies Hacked . | . . . . . . . . . . Hacks Repelled . | . . . . . . . . . . Allies | -11 -10 -10 -10 -9 -8 -7 -6 -6 -6 -------- Run | Scr Mat Min Exi Min Mat Fac Fac Was Fac Total Allies 5 | . . 3 . . . 1 . 1 . Largest Group 3 | . . 3 3 3 3 1 . 1 . Highest-Rated Group 40 | . . 40 40 40 40 11 . 31 . Highest-Rated Ally 31 | . . 16 16 16 16 11 . 31 . Total Orders 2 | . . . . . . 1 1 . . COLLECT 1 | . . . . . . 1 . . . EXPLORE 1 | . . . . . . . 1 . . Ally Attacks 49 | . . 23 . . 10 . . 16 . Total Damage 527 | . . 183 . . 116 . . 228 . Kills 7 | . . 6 . . 1 . . . . Allies Corrupted . | . . . . . . . . . . Allies Melted . | . . . . . . . . . . Intel | -11 -10 -10 -10 -9 -8 -7 -6 -6 -6 ------- Run | Scr Mat Min Exi Min Mat Fac Fac Was Fac Robot Analysis Total . | . . . . . . . . . . Derelict Logs Recovered 1 | . . 1 . . . . . . . Drone Launches 2 | . . . . . . . 2 . . Drone Recoveries . | . . . . . . . . . . Exploration | -11 -10 -10 -10 -9 -8 -7 -6 -6 -6 ------------- Run | Scr Mat Min Exi Min Mat Fac Fac Was Fac Turns Passed 5674 | 82 429 778 424 201 755 816 1559 225 405 Spaces Moved 3592 | 47 209 481 262 126 363 436 844 144 680 Core 367 | 3 . . . . . . . 84 280 Treads 2001 | 44 209 481 262 126 363 436 80 . . Legs 824 | . . . . . . . 764 60 . Wheels . | . . . . . . . . . . Hover 8 | . . . . . . . . . 8 Flight 392 | . . . . . . . . . 392 Fastest Speed 32 | 50 160 160 160 160 160 160 120 50 32 Average Speed 130 | 152 160 160 160 160 160 160 133 112 44 Slowest Speed 200 | 160 160 160 160 160 160 160 200 200 150 Overloaded Moves . | . . . . . . . . . . Propulsion Burnouts . | . . . . . . . . . . Robots Hopped 5 | . . . . . . . . . 5 Cave-ins Triggered . | . . . . . . . . . . Exploration Rate (%) 40 | 3 39 97 68 31 30 8 27 79 22 Regions Visited 9 Branch Regions 3 Pre-discovered Areas 1 | . . 1 . . . . . . . Known Exits Taken 1 | . 1 . . . . . . . . Unknown Exits Taken 6 | 1 . 1 1 1 1 1 . . . Scrap Searched 2 | . . . . 2 . . . . . Spaces Dug 7 | . . . . . . . . 7 . Terrain Destroyed 283 | . . . . . 40 4 135 74 30 Melee . | . . . . . . . . . . Projectile 30 | . . . . . 11 4 11 4 . AOE 253 | . . . . . 29 . 124 70 30 Terrain Rammed . | . . . . . . . . . . Walls Destroyed . | . . . . . . . . . . Machines Disabled . | . . . . . . . . . . Actions | -11 -10 -10 -10 -9 -8 -7 -6 -6 -6 --------- Run | Scr Mat Min Exi Min Mat Fac Fac Was Fac Total 4207 | 55 261 490 267 126 474 516 1081 173 764 Wait 216 | . 18 9 . . 27 53 62 . 47 Move 3574 | 46 208 480 261 125 362 435 844 143 670 Hop 5 | . . . . . . . . . 5 Pick Up 42 | 3 5 1 5 1 11 2 11 . 3 Fast Attach 33 | 5 1 . . . 7 1 11 2 6 Attach 24 | 1 1 . . . 3 1 8 7 3 Detach 3 | . 1 . . . 2 . . . . Swap 28 | . 1 . . . 9 1 16 1 . Drop 41 | . 1 . 1 . 16 3 19 . 1 Fire 214 | . 23 . . . 35 20 107 20 9 Melee . | . . . . . . . . . . Ram 4 | . . . . . . . . . 4 Kick 3 | . . . . . . . 3 . . Crush 4 | . 2 . . . 2 . . . . Escape Stasis 16 | . . . . . . . . . 16 Rewire . | . . . . . . . . . . Trap . | . . . . . . . . . . Miscellaneous . | . . . . . . . . . . Route ------- -11/Scrapyard -10/Materials (discovered 2 exits: [*Mat] / *Min) -10/Mines (discovered 3 exits: [*Mat x2] / [*Exi]) -10/Exiles -9/Mines -8/Materials -7/Factory (discovered 2 exits: *Fac / [*Low]) -6/Factory -6/Waste -6/Factory History --------- Turn | Location | Event 23 | -11/Scrapyard | Discovered new exit (range 15) 83 | -11/Scrapyard | Entered Materials 300 | -10/Materials | Build established: Mutant 384 | -10/Materials | Discovered new exit (range 12) 408 | -10/Materials | Identified exit to Mines 512 | -10/Materials | Entered Mines 669 | -10/Mines | Discovered new exit (range 11) 690 | -10/Mines | Assisted by bots powering up and referring to "LRC-V3" 781 | -10/Mines | Assembled infested the area 1070 | -10/Mines | Discovered new exit (range 12) 1284 | -10/Mines | Deemed a non-threat by the Exiles lab entrance 1284 | -10/Mines | Discovered new exit (range 5) 1290 | -10/Mines | Entered Exiles 1290 | -10/Exiles | Accompanied by 3 allies 1337 | -10/Exiles | Met 8R-AWN 1364 | -10/Exiles | Met EX-HEX 1415 | -10/Exiles | Met EX-BIN 1495 | -10/Exiles | Met EX-DEC 1686 | -10/Exiles | Discovered new exit (range 15) 1714 | -10/Exiles | Entered Mines 1714 | -9/Mines | Accompanied by 3 allies 1729 | -9/Mines | Met a Derelict bent on vengeance 1890 | -9/Mines | Discovered new exit (range 9) 1915 | -9/Mines | Entered Materials 1915 | -8/Materials | Accompanied by 3 allies 1915 | -8/Materials | Evolved 4 slots: Propulsion x2, Utility x2 2194 | -8/Materials | Repaired Lgt. Treads 2661 | -8/Materials | Discovered new exit (range 7) 2670 | -8/Materials | Entered Factory 2670 | -7/Factory | Evolved 2 slots: Propulsion x1, Utility x1 3029 | -7/Factory | Discovered new exit (range 13) 3114 | -7/Factory | Discovered new exit (range 16) 3209 | -7/Factory | Fabricated A-02 Transporter (x1) 3486 | -7/Factory | Entered another Factory area 3486 | -6/Factory | Evolved 2 slots: Propulsion x1, Utility x1 4536 | -6/Factory | First assault squad dispatched 5040 | -6/Factory | Lost 3 parts (1p1n1u) 5045 | -6/Factory | Sucked down chute 5045 | -6/Factory | Entered Waste 5046 | -6/Waste | Met a frightened Derelict 5060 | -6/Waste | EMP discharged 5060 | -6/Waste | System corruption reached 10% 5067 | -6/Waste | Spotted C-40 Crusher 5076 | -6/Waste | Destroyed C-40 Crusher 5082 | -6/Waste | Spotted C-40 Crusher 5082 | -6/Waste | Spotted C-40 Crusher 5121 | -6/Waste | Destroyed C-40 Crusher 5132 | -6/Waste | Destroyed C-40 Crusher 5160 | -6/Waste | EMP discharged 5176 | -6/Waste | Spotted C-40 Crusher 5215 | -6/Waste | Crushed by Compactor (1 part destroyed, 1 dropped) 5218 | -6/Waste | Crushed by Compactor (1 part destroyed, 2 dropped) 5221 | -6/Waste | Crushed by Compactor (1 part destroyed, 1 dropped) 5224 | -6/Waste | Crushed by Compactor (1 part destroyed, 2 dropped) 5227 | -6/Waste | Crushed by Compactor (1 part destroyed, 2 dropped) 5228 | -6/Waste | Core integrity fell below 50% 5243 | -6/Waste | Spotted C-40 Crusher 5258 | -6/Waste | Lost 8 parts (1p3n4w) 5260 | -6/Waste | EMP discharged 5261 | -6/Waste | Discovered new exit (range 16) 5270 | -6/Waste | Entered Factory 5618 | -6/Factory | System corruption reached 30% 5641 | -6/Factory | Core integrity fell below 20% 5675 | -6/Factory | Self-destructed Last Messages --------------- 05617_ System corrupted by crushing effect (+5). 05617_ System corrupted by crushing effect (+1). 05618_ K-01 Serf cleans the Fusion Modulator. 05631_ IK:M BC&DHUM HO3UVEMIR7R%R2OIV <2KUU3 05632_ K-01 Serf destroyed. 05636_ K-01 Serf cleans the Fusion Modulator. 05637_ K-01 Serf collects debris. 05642_ K-01 Serf destroyed. 05644_ Destroyed Lgt. Angular Momentum Engine. 05645_ ALERT: Construction progress impeded, dispatching reinforcements to local area. 05646_ K-01 Serf collects debris. 05646_ Missile Launcher destroyed. 05647_ Lgt. Nuclear Core destroyed. 05649_ M%1MJ4J65XWE|HPN1CA SI0U>JVIPKOH